bitfinex/quotes_BTCUSD_20250119
["timestamp","ask_amount","ask_price","bid_price","bid_amount"]
[1737263791099,0.15104868,104370.0,104360.0,0.095822]
[1737263791534,0.17404868,104370.0,104360.0,0.095822]
[1737263791964,0.26986068,104370.0,104360.0,0.095822]
[1737263792182,0.17404868,104370.0,104360.0,0.095822]
[1737263792615,0.17404868,104370.0,104360.0,0.10420035]
[1737263792800,0.17404868,104370.0,104360.0,0.09920035]
[1737263794552,0.02404868,104370.0,104360.0,0.09920035]
[1737263795206,0.17404868,104370.0,104360.0,0.09920035]
[1737263795438,0.02404868,104370.0,104360.0,0.09920035]
[1737263795851,0.02404868,104370.0,104360.0,0.11260686]
[1737263796695,0.00104868,104370.0,104360.0,0.11260686]
[1737263797357,0.00104868,104370.0,104360.0,0.18950686]
[1737263798615,0.00104868,104370.0,104360.0,0.19046497]
[1737263799444,0.00104868,104370.0,104360.0,0.18950686]
[1737263800296,0.17404868,104370.0,104360.0,0.11260686]
[1737263800471,0.26986068,104370.0,104360.0,0.11260686]
[1737263801017,0.52686745,104370.0,104360.0,0.02178486]
[1737263801659,0.44490149,104370.0,104360.0,0.02178486]
[1737263801812,0.44490149,104370.0,104360.0,0.00837835]
[1737263803703,0.24984868,104370.0,104360.0,0.10420035]
[1737263803911,0.17404868,104370.0,104360.0,0.10420035]
[1737263804324,0.26986068,104370.0,104360.0,0.10420035]
[1737263804752,0.17404868,104370.0,104360.0,0.10420035]
[1737263805222,0.26986068,104370.0,104360.0,0.10420035]
[1737263805427,0.15104868,104370.0,104360.0,0.10420035]
[1737263805841,0.15104868,104370.0,104360.0,0.19913506]
[1737263806262,0.15104868,104370.0,104360.0,0.11803506]
[1737263806463,0.17404868,104370.0,104360.0,0.11803506]
[1737263808191,0.44970149,104370.0,104360.0,0.02221306]
[1737263808390,0.26986068,104370.0,104360.0,0.02221306]
[1737263808602,0.35046068,104370.0,104360.0,0.02221306]
[1737263811288,0.26986068,104370.0,104360.0,0.11803506]
[1737263811642,0.17404868,104370.0,104360.0,0.11803506]
[1737263812052,0.26986068,104370.0,104360.0,0.11803506]
[1737263812253,0.17404868,104370.0,104360.0,0.11803506]
[1737263814248,0.26986068,104370.0,104360.0,0.11803506]
[1737263814388,0.17404868,104370.0,104360.0,0.11803506]
[1737263815010,0.15104868,104370.0,104360.0,0.20103506]
[1737263815454,0.17404868,104370.0,104360.0,0.20103506]
[1737263816659,0.15104868,104370.0,104360.0,0.20103506]
[1737263820788,0.24686068,104370.0,104360.0,0.11803506]
[1737263821428,0.49570149,104370.0,104360.0,0.02221306]
[1737263822060,0.57766745,104370.0,104360.0,0.02221306]
[1737263822273,0.67690826,104370.0,104360.0,0.02221306]
[1737263822477,0.57766745,104370.0,104360.0,0.02221306]
[1737263822909,0.57766745,104370.0,104360.0,0.02179167]
[1737263823513,0.57766745,104370.0,104360.0,0.00838516]
[1737263829439,0.57766745,104370.0,104360.0,0.0004282]
[1737263831042,0.67766745,104370.0,104360.0,0.0004282]
[1737263831232,0.76779833,104370.0,104360.0,0.0004282]
[1737263832087,0.98020868,104370.0,104360.0,0.0004282]
[1737263832660,0.8900778,104370.0,104360.0,0.0004282]
[1737263832893,1.21000608,104370.0,104360.0,0.0004282]
[1737263835072,1.0400778,104370.0,104360.0,0.0004282]
[1737263835503,0.8900778,104370.0,104360.0,0.0004282]
[1737263836878,0.90892385,104370.0,104360.0,0.0004282]
[1737263837312,0.90812466,104370.0,104360.0,0.0004282]
[1737263837685,0.95888385,104370.0,104360.0,0.0004282]
[1737263839140,1.22881213,104370.0,104360.0,0.0004282]
[1737263840958,2.01077809,104370.0,104360.0,0.0004282]
[1737263841373,1.92881213,104370.0,104360.0,0.0004282]
[1737263841933,1.82881213,104370.0,104360.0,0.0004282]
[1737263842133,1.90468771,104370.0,104360.0,0.0004282]
[1737263842488,2.11709807,104370.0,104360.0,0.0004282]
[1737263843307,2.19906403,104370.0,104360.0,0.0004282]
[1737263844674,1.90468771,104370.0,104360.0,0.0004282]
[1737263845523,2.11709807,104370.0,104360.0,0.0004282]
[1737263845857,2.04122249,104370.0,104360.0,0.0004282]
[1737263847030,0.023,104350.0,104340.0,0.0004282]
[1737263847236,1.12773777,104350.0,104340.0,0.0004282]
[1737263847433,0.64654,104340.0,104330.0,0.01279095]
[1737263847644,0.75971273,104340.0,104330.0,0.01279095]
[1737263847879,0.65971273,104340.0,104330.0,0.01279095]
[1737263848075,0.66595273,104340.0,104330.0,0.01279095]
[1737263848299,1.36595273,104340.0,104330.0,0.01279095]
[1737263848500,1.36595273,104340.0,104330.0,0.00979415]
[1737263848703,1.46519354,104340.0,104330.0,0.00979415]
[1737263848905,1.84753217,104340.0,104330.0,0.00979415]
[1737263849108,1.84753217,104340.0,104330.0,0.0014282]
[1737263849765,1.84753218,104340.0,104330.0,0.0014282]
[1737263849938,0.4,104320.0,104310.0,0.0004279]
[1737263850146,0.41050892,104300.0,104290.0,0.00479642]
[1737263850384,0.345886,104290.0,104280.0,0.01860451]
[1737263850595,0.345886,104290.0,104280.0,0.01355969]
[1737263850596,0.60905873,104290.0,104280.0,0.01355969]
[1737263850820,0.53205873,104290.0,104280.0,0.01355969]
[1737263851337,1.23215424,104290.0,104280.0,0.01355969]
[1737263851510,1.33139505,104290.0,104280.0,0.01355969]
[1737263851711,0.63139505,104290.0,104280.0,0.01355969]
[1737263851910,0.63139505,104290.0,104280.0,0.00519642]
[1737263852139,0.63139505,104290.0,104280.0,0.0004]
[1737263852346,0.095941,104230.0,104220.0,0.0176707]
[1737263852542,0.095941,104230.0,104200.0,0.0004]
[1737263852543,0.11896,104210.0,104200.0,7e-07]
[1737263852888,0.26896,104210.0,104200.0,7e-07]
[1737263853294,0.173,104210.0,104200.0,7e-07]
[1737263853854,0.17314931,104210.0,104200.0,7e-07]
[1737263854057,0.00014931,104210.0,104200.0,0.09992995]
[1737263854255,0.00014931,104210.0,104200.0,0.22902984]
[1737263854399,0.00014931,104210.0,104200.0,0.22807028]
[1737263855012,0.00014931,104210.0,104200.0,0.32731109]
[1737263856867,0.00014931,104210.0,104200.0,0.3356063]
[1737263858712,0.00014931,104210.0,104200.0,0.10726549]
[1737263859519,0.00014931,104210.0,104200.0,0.09897028]
[1737263860931,0.00014931,104210.0,104200.0,0.09397028]
[1737263861947,0.00014931,104210.0,104200.0,0.095969]
[1737263861948,0.15014931,104210.0,104200.0,0.095969]
[1737263864858,0.15014931,104210.0,104200.0,0.0963978]
[1737263865218,0.00014931,104210.0,104200.0,0.0963978]
[1737263865364,0.00014931,104210.0,104200.0,0.09735739]
[1737263865598,0.00014931,104210.0,104200.0,0.1965982]
[1737263865802,0.00014931,104210.0,104200.0,0.3216982]
[1737263866007,0.00014931,104210.0,104200.0,0.32073861]
[1737263866639,0.00014931,104210.0,104200.0,0.3255393]
[1737263866836,0.00014931,104210.0,104200.0,0.3338133]
[1737263867166,0.00014931,104210.0,104200.0,0.51577926]
[1737263867372,0.00014931,104210.0,104200.0,0.61577926]
[1737263867576,0.00014931,104210.0,104200.0,0.60750526]
[1737263867777,0.00014931,104210.0,104200.0,0.60270457]
[1737263868200,0.00090048,104220.0,104210.0,0.19596]
[1737263868401,0.00099657,104220.0,104210.0,0.603226]
[1737263868607,0.00099657,104220.0,104210.0,0.60226677]
[1737263869017,0.00099657,104220.0,104210.0,0.61054512]
[1737263870452,0.00099657,104220.0,104210.0,0.52857916]
[1737263871445,0.00042076,104220.0,104210.0,0.52857916]
[1737263871901,0.00042076,104220.0,104210.0,0.62032302]
[1737263872486,0.00042076,104220.0,104210.0,0.77032302]
[1737263873090,0.00042076,104220.0,104210.0,0.77332211]
[1737263873646,0.095906,104270.0,104250.0,0.38368]
[1737263873854,0.51971496,104260.0,104240.0,0.287781]
[1737263874463,0.71154596,104260.0,104240.0,0.287781]
[1737263874786,0.437774,104250.0,104230.0,0.287809]
[1737263874931,0.437774,104250.0,104240.0,0.01127744]
[1737263875152,0.51973996,104250.0,104240.0,0.01127744]
[1737263875788,0.437774,104250.0,104240.0,0.01127744]
[1737263876136,0.15,104250.0,104240.0,0.10720944]
[1737263876427,0.15,104260.0,104250.0,0.095923]
[1737263876841,0.07555046,104270.0,104260.0,0.095914]
[1737263877045,0.00015046,104270.0,104260.0,0.095914]
[1737263877608,0.15015046,104270.0,104260.0,0.095914]
[1737263877823,0.00015046,104270.0,104260.0,0.095914]
[1737263878020,0.15015046,104270.0,104260.0,0.095914]
[1737263878516,0.15015046,104270.0,104260.0,0.10419235]
[1737263883894,0.24605446,104270.0,104260.0,0.10419235]
[1737263884312,0.34529527,104270.0,104260.0,0.00827835]
[1737263884535,0.42726123,104270.0,104260.0,0.00827835]
[1737263884738,0.34529527,104270.0,104260.0,0.00827835]
[1737263886128,0.27726123,104270.0,104260.0,0.00827835]
[1737263886340,0.19529527,104270.0,104260.0,0.00827835]
[1737263887581,0.19529527,104270.0,104260.0,0.02159564]
[1737263888342,0.19619386,104270.0,104260.0,0.02159564]
[1737263890134,0.19619386,104270.0,104260.0,0.11750964]
[1737263890382,0.00104905,104270.0,104260.0,0.11750964]
[1737263890587,0.15104905,104270.0,104260.0,0.11750964]
[1737263890934,0.00104905,104270.0,104260.0,0.11750964]
[1737263892421,0.15104905,104270.0,104260.0,0.11750964]
[1737263895442,0.24695305,104270.0,104260.0,0.11750964]
[1737263895670,0.24695305,104270.0,104260.0,0.00827835]
[1737263896075,0.17435305,104270.0,104260.0,0.10419235]
[1737263896446,0.17435305,104270.0,104260.0,0.00827835]
[1737263896654,0.17435305,104270.0,104260.0,0.10419235]
[1737263897089,0.07844905,104270.0,104260.0,0.10419235]
[1737263897687,0.00104905,104270.0,104260.0,0.10419235]
[1737263898102,0.15100905,104270.0,104260.0,0.10419235]
[1737263898310,0.1491542,104270.0,104260.0,0.10419235]
[1737263898513,0.1491542,104270.0,104260.0,0.29601135]
[1737263898713,0.173295,104280.0,104270.0,0.095904]
[1737263898919,0.1491542,104270.0,104260.0,0.29600035]
[1737263899122,0.1491542,104270.0,104260.0,0.29649998]
[1737263899351,0.365089,104280.0,104260.0,0.29649998]
[1737263899649,0.1491542,104270.0,104260.0,0.50168123]
[1737263899825,0.1491542,104270.0,104260.0,0.31029083]
[1737263900029,0.15005217,104270.0,104260.0,0.31029083]
[1737263900235,0.00089797,104270.0,104260.0,0.31029083]
[1737263901946,0.11980197,104270.0,104260.0,0.02256883]
[1737263902515,0.11980197,104270.0,104260.0,0.11848283]
[1737263904191,0.02389797,104270.0,104260.0,0.11848283]
[1737263904335,0.15005217,104270.0,104260.0,0.11848283]
[1737263906560,0.00089797,104270.0,104260.0,0.3765896]
[1737263908512,0.00089797,104270.0,104260.0,0.4765896]
[1737263908888,0.00089797,104270.0,104260.0,0.7769354]
[1737263909094,0.00089797,104270.0,104260.0,0.80683876]
[1737263911306,0.2307542,104310.0,104280.0,0.2269]
[1737263911543,0.2307542,104310.0,104300.0,0.095877]
[1737263912386,0.3266222,104310.0,104290.0,0.479422]
[1737263912617,0.5183582,104310.0,104290.0,0.479422]
[1737263912818,0.1047504,104310.0,104300.0,0.095877]
[1737263912951,0.0817504,104310.0,104300.0,0.095877]
[1737263913360,0.0817504,104310.0,104300.0,0.10415535]
[1737263913556,0.2309046,104310.0,104300.0,0.10415535]
[1737263913816,0.0817504,104310.0,104300.0,0.10415535]
[1737263915317,0.0817504,104310.0,104300.0,0.10525718]
[1737263916114,0.1047504,104310.0,104300.0,0.10525718]
[1737263920780,0.0231504,104310.0,104300.0,0.10525718]
[1737263923282,0.02404837,104310.0,104300.0,0.10525718]
[1737263924399,0.00104837,104310.0,104300.0,0.18722314]
[1737263924626,0.00104837,104310.0,104300.0,0.26528178]
[1737263924903,0.15020257,104310.0,104300.0,0.10525718]
[1737263925121,0.00104837,104310.0,104300.0,0.11862043]
[1737263925373,0.15020257,104310.0,104300.0,0.11862043]
[1737263925776,0.22640257,104310.0,104300.0,0.11862043]
[1737263926039,0.24940257,104310.0,104300.0,0.10525718]
[1737263926258,0.43060934,104310.0,104300.0,0.00938018]
[1737263926471,0.34864338,104310.0,104300.0,0.10525718]
[1737263927115,0.24940257,104310.0,104300.0,0.10525718]
[1737263927328,0.24940257,104310.0,104300.0,0.09697883]
[1737263927724,0.15020257,104310.0,104300.0,0.09697883]
[1737263927885,0.00104837,104310.0,104300.0,0.32894479]
[1737263928308,0.00104837,104310.0,104300.0,0.42823933]
[1737263928682,0.00104837,104310.0,104300.0,0.51361768]
[1737263928884,0.00104837,104310.0,104300.0,0.51471217]
[1737263929085,0.00104837,104310.0,104300.0,0.51515466]
[1737263929701,0.00104837,104310.0,104300.0,0.51592891]
[1737263934271,0.00104837,104310.0,104300.0,0.53516849]
[1737263935085,0.00104837,104310.0,104300.0,0.63516849]
[1737263935508,0.00104837,104310.0,104300.0,0.73516849]
[1737263935711,0.00104837,104310.0,104300.0,0.78466849]
[1737263935918,0.00104837,104310.0,104300.0,0.78551429]
[1737263937230,0.00104837,104310.0,104300.0,0.80851429]
[1737263940460,0.00104837,104310.0,104300.0,0.45806849]
[1737263941020,0.00104837,104310.0,104300.0,0.46426849]
[1737263941380,0.00104837,104310.0,104300.0,0.44502891]
[1737263945225,0.00104837,104310.0,104300.0,0.25762214]
[1737263945437,0.00104837,104310.0,104300.0,0.3457881]
[1737263947003,0.00104837,104310.0,104300.0,0.44502891]
[1737263949222,0.00104837,104310.0,104300.0,0.1957881]
[1737263949601,0.00104837,104310.0,104300.0,0.11382214]
[1737263949803,0.00104837,104310.0,104300.0,0.10762214]
[1737263950342,0.27390257,104310.0,104300.0,0.10762214]
[1737263950558,0.22061637,104310.0,104300.0,0.10762214]
[1737263951010,0.31985718,104310.0,104300.0,0.10762214]
[1737263951241,0.31985718,104310.0,104300.0,0.01174514]
[1737263951651,0.22398918,104310.0,104300.0,0.10762214]
[1737263951831,0.31985718,104310.0,104300.0,0.01174514]
[1737263952238,0.31985718,104310.0,104300.0,0.10762214]
[1737263952941,0.31985718,104310.0,104300.0,0.01174514]
[1737263953163,0.31985718,104310.0,104300.0,0.10762214]
[1737263954032,0.22398918,104310.0,104300.0,0.10762214]
[1737263954571,0.31985718,104310.0,104300.0,0.10762214]
[1737263954921,0.22398918,104310.0,104300.0,0.10762214]
[1737263955355,0.31985718,104310.0,104300.0,0.10762214]
[1737263956399,0.22398918,104310.0,104300.0,0.10762214]
[1737263956925,0.31985718,104310.0,104300.0,0.01174514]
[1737263957128,0.22398918,104310.0,104300.0,0.10762214]
[1737263957332,0.31985718,104310.0,104300.0,0.10762214]
[1737263958347,0.31985718,104310.0,104300.0,0.01174514]
[1737263958593,0.22398918,104310.0,104300.0,0.10762214]
[1737263959028,0.12474837,104310.0,104300.0,0.10762214]
[1737263959183,0.12470837,104310.0,104300.0,0.10762214]
[1737263960183,0.00100837,104310.0,104300.0,0.1895881]
[1737263960872,0.15016257,104310.0,104300.0,0.10762214]
[1737263962017,0.22516257,104310.0,104300.0,0.10762214]
[1737263962372,0.22516257,104310.0,104300.0,0.10415535]
[1737263962726,0.22516257,104310.0,104300.0,0.10525718]
[1737263963572,0.22516257,104310.0,104300.0,0.09697883]
[1737263963729,0.22516257,104310.0,104300.0,0.10531389]
[1737263964072,0.22516257,104310.0,104300.0,0.10800057]
[1737263964711,0.27136257,104310.0,104300.0,0.10800057]
[1737263965327,0.27097472,104310.0,104300.0,0.10800057]
[1737263965874,0.27097472,104310.0,104300.0,0.18996653]
[1737263966083,0.22477472,104310.0,104300.0,0.18996653]
[1737263966281,0.12182052,104310.0,104300.0,0.10800057]
[1737263967456,0.31692933,104310.0,104300.0,0.01212357]
[1737263967666,0.31692933,104310.0,104300.0,0.10800057]
[1737263968022,0.31692933,104310.0,104300.0,0.01212357]
[1737263968239,0.31692933,104310.0,104300.0,0.10800057]
[1737263968436,0.31692933,104310.0,104300.0,0.01212357]
[1737263969536,0.9211361,104310.0,104300.0,0.01212357]
[1737263969738,0.82189529,104310.0,104300.0,0.01212357]
[1737263969943,0.82189529,104310.0,104300.0,0.00378851]
[1737263970519,1.20485606,104310.0,104300.0,0.00378851]
[1737263971299,1.33250966,104310.0,104300.0,0.00378851]
[1737263973090,1.41757295,104310.0,104300.0,0.00378851]
[1737263974655,1.20481696,104310.0,104300.0,0.00378851]
[1737263975982,1.30405777,104310.0,104300.0,0.00378851]
[1737263976182,1.20481696,104310.0,104300.0,0.00378851]
[1737263976441,0.175786,104290.0,104280.0,0.29602548]
[1737263976658,0.27502681,104290.0,104280.0,0.29602548]
[1737263978679,0.27502681,104290.0,104280.0,0.10423548]
[1737263979449,0.27502681,104290.0,104280.0,0.10423648]
[1737263979990,0.27502681,104290.0,104280.0,0.10695994]
[1737263982339,0.27502681,104290.0,104280.0,0.10738744]
[1737263985065,0.27502681,104290.0,104280.0,0.01149244]
[1737263985692,0.27502681,104290.0,104280.0,0.10738744]
[1737263986699,0.27502681,104290.0,104280.0,0.01277815]
[1737263987115,0.32332681,104290.0,104280.0,0.01277815]
[1737263987772,0.32332681,104290.0,104280.0,0.10867315]
[1737263989365,0.22744081,104290.0,104280.0,0.10867315]
[1737263989566,0.1491542,104290.0,104280.0,0.10867315]
[1737263989768,0.1491542,104290.0,104280.0,0.24570298]
[1737263989974,0.1491542,104300.0,104290.0,0.095886]
[1737263990285,0.1491542,104300.0,104290.0,0.09978483]
[1737263990892,0.1491542,104300.0,104290.0,0.12146902]
[1737263991447,0.2450312,104300.0,104290.0,0.12146902]
[1737263991740,0.1491542,104300.0,104290.0,0.12146902]
[1737263992503,0.47997652,104310.0,104290.0,0.50500202]
[1737263992710,0.57921733,104310.0,104290.0,0.50500202]
[1737263992912,0.19354488,104320.0,104310.0,0.2998458]
[1737263993128,0.57655577,104320.0,104310.0,0.68562412]
[1737263993336,0.57655577,104320.0,104310.0,0.69535191]
[1737263993568,0.57655577,104320.0,104310.0,0.50654015]
[1737263993891,0.57655577,104320.0,104310.0,0.4969908]
[1737263994073,5.011e-05,104320.0,104310.0,0.37474999]
[1737263994258,0.00094786,104320.0,104310.0,0.33414999]
[1737263994636,0.00094786,104320.0,104310.0,0.34249147]
[1737263995660,0.00094786,104320.0,104310.0,0.35581801]
[1737263996844,0.00094786,104320.0,104310.0,0.36533483]
[1737263997053,0.00094786,104320.0,104310.0,0.35200829]
[1737263997913,0.00094786,104320.0,104310.0,0.43397425]
[1737263998283,0.00094786,104320.0,104310.0,0.45697425]
[1737263998711,0.00094786,104320.0,104310.0,0.55621506]
[1737264001457,0.00094786,104320.0,104310.0,0.55021506]
[1737264001658,0.00094786,104320.0,104310.0,0.55722497]
[1737264005356,8.6e-07,104320.0,104310.0,0.63919093]
[1737264005541,8.6e-07,104320.0,104310.0,0.68783673]
[1737264006083,8.6e-07,104320.0,104310.0,0.68826413]
[1737264006493,0.14545492,104350.0,104320.0,0.023]
[1737264006652,0.14550504,104350.0,104340.0,0.17780596]
[1737264006897,0.14550504,104350.0,104340.0,0.18380596]
[1737264007532,5.012e-05,104350.0,104340.0,0.18380596]
[1737264008413,0.14550504,104350.0,104340.0,0.18380596]
[1737264010185,0.14550504,104350.0,104340.0,0.10184]
[1737264010365,0.14550504,104350.0,104340.0,0.09866686]
[1737264011702,0.09929093,104350.0,104340.0,0.09866686]
[1737264012151,0.09929093,104350.0,104340.0,0.00282686]
[1737264012152,0.19512193,104350.0,104340.0,0.00282686]
[1737264012954,0.19512193,104350.0,104340.0,0.09866686]
[1737264013481,0.09929093,104350.0,104340.0,0.09866686]
[1737264013923,0.19512193,104350.0,104340.0,0.09866686]
[1737264015342,0.09929093,104350.0,104340.0,0.09866686]
[1737264016831,0.09929093,104350.0,104340.0,0.09940113]
[1737264018281,0.10018847,104350.0,104340.0,0.10774261]
[1737264019244,0.14640258,104350.0,104340.0,0.18970857]
[1737264019479,0.00094766,104350.0,104340.0,0.18970857]
[1737264019688,0.00094766,104350.0,104340.0,0.19066685]
[1737264019887,0.00094766,104350.0,104340.0,0.18970857]
[1737264020108,0.14640258,104350.0,104340.0,0.18970857]
[1737264020320,0.00094766,104350.0,104340.0,0.18970857]
[1737264020491,0.14640258,104350.0,104340.0,0.18970857]
[1737264020958,0.00094766,104350.0,104340.0,0.18970857]
[1737264021135,0.00090766,104350.0,104340.0,0.20396118]
[1737264021407,0.00242766,104350.0,104340.0,0.20396118]
[1737264021866,0.00242766,104350.0,104340.0,0.35396118]
[1737264022144,0.00242766,104350.0,104340.0,0.37244177]
[1737264022345,0.00242766,104350.0,104340.0,0.3760029]
[1737264025438,0.00242766,104350.0,104340.0,0.3530029]
[1737264027402,0.00242766,104350.0,104340.0,0.4294029]
[1737264027633,0.00242766,104350.0,104340.0,0.55164371]
[1737264029778,0.00242766,104350.0,104340.0,0.55207151]
[1737264032093,0.00090006,104360.0,104350.0,0.266531]
[1737264032334,0.00090006,104360.0,104350.0,0.56047397]
[1737264032550,0.00090006,104360.0,104350.0,0.56065015]
[1737264033203,0.00090006,104360.0,104350.0,0.58228596]
[1737264033405,0.00089901,104370.0,104360.0,0.43275392]
[1737264033586,0.00089901,104370.0,104360.0,0.60839473]
[1737264033823,0.00089901,104370.0,104360.0,0.61812325]
[1737264034032,0.00089901,104370.0,104360.0,0.74796596]
[1737264034201,0.00089901,104370.0,104360.0,0.71812325]
[1737264034413,0.00089901,104370.0,104360.0,0.72108152]
[1737264035189,0.00089901,104370.0,104360.0,0.63911556]
[1737264035391,0.00089901,104370.0,104360.0,0.66671137]
[1737264035823,0.00089901,104370.0,104360.0,0.66075137]
[1737264036021,0.00089901,104370.0,104360.0,0.66671137]
[1737264037305,0.00089901,104370.0,104360.0,0.68575906]
[1737264037732,0.00089901,104370.0,104360.0,0.69527055]
[1737264039362,0.00089901,104370.0,104360.0,0.68931055]
[1737264039562,0.00089901,104370.0,104360.0,0.69527055]
[1737264043487,0.00089901,104370.0,104360.0,0.88178159]
[1737264045748,0.00089901,104370.0,104360.0,0.79981563]
[1737264052805,0.00089901,104370.0,104360.0,0.71745563]
[1737264053055,0.00089901,104370.0,104360.0,0.72341563]
[1737264053255,0.00089901,104370.0,104360.0,1.20684178]
[1737264055040,0.00089901,104370.0,104360.0,0.72384333]
[1737264060565,0.00089901,104370.0,104360.0,0.40470294]
[1737264060870,0.08319901,104370.0,104360.0,0.15546213]
[1737264061854,0.00089901,104370.0,104360.0,0.3596689]
[1737264062060,0.00089901,104370.0,104360.0,0.61275146]
[1737264062255,0.08320006,104380.0,104360.0,0.61275146]
[1737264062256,0.08320006,104380.0,104370.0,0.245812]
[1737264062456,0.00090006,104380.0,104370.0,0.42701877]
[1737264062683,0.00090006,104380.0,104370.0,0.55312101]
[1737264062873,0.00090006,104380.0,104370.0,0.57475682]
[1737264064110,0.00090006,104380.0,104370.0,0.63540579]
[1737264064315,0.00090006,104380.0,104370.0,0.73540579]
[1737264064538,0.00090006,104380.0,104370.0,0.76676347]
[1737264064967,0.00090006,104380.0,104370.0,0.61676347]
[1737264065170,0.00090006,104380.0,104370.0,0.66206347]
[1737264065474,6e-08,104380.0,104370.0,0.74434622]
[1737264065597,0.0004,104390.0,104380.0,0.13469784]
[1737264065799,0.0004,104390.0,104380.0,0.43566526]
[1737264066010,0.0004,104390.0,104380.0,0.40455485]
[1737264066270,0.0004,104390.0,104380.0,0.40769549]
[1737264066396,0.0004,104390.0,104380.0,0.43757665]
[1737264066826,0.0004,104390.0,104380.0,0.45921246]
[1737264067037,0.0004,104390.0,104380.0,1.10176026]
[1737264067684,0.0004,104390.0,104380.0,1.11136788]
[1737264068091,0.0004,104390.0,104380.0,1.28286477]
[1737264069162,9.88145232,104400.0,104390.0,0.610471]
[1737264069367,9.88145232,104400.0,104390.0,0.80741817]
[1737264069865,9.85466232,104400.0,104390.0,0.81054645]
[1737264070174,9.76465432,104400.0,104390.0,0.83218226]
[1737264070388,9.7456477,104400.0,104390.0,0.83218226]
[1737264070591,9.73644789,104400.0,104390.0,0.83218226]
[1737264071152,9.67584761,104400.0,104390.0,0.83218226]
[1737264071881,9.67584761,104400.0,104390.0,0.80082458]
[1737264072080,9.67584761,104400.0,104390.0,0.6823911]
[1737264072240,0.00015038,104400.0,104390.0,0.9110902]
[1737264072445,0.00015038,104400.0,104390.0,0.71563528]
[1737264072668,0.00015038,104400.0,104390.0,0.87033528]
[1737264073087,0.00015038,104400.0,104390.0,0.99886353]
[1737264073688,0.00015038,104400.0,104390.0,0.92096353]
[1737264074480,0.00015038,104400.0,104390.0,1.06641845]
[1737264074757,0.00015038,104400.0,104390.0,1.07096353]
[1737264076764,0.00015038,104400.0,104390.0,1.15292949]
[1737264076964,0.00015038,104400.0,104390.0,1.07096353]
[1737264077232,0.00104855,104400.0,104390.0,1.15292949]
[1737264077389,0.00104855,104400.0,104390.0,1.18351701]
[1737264077762,5.5e-07,104400.0,104390.0,1.01206208]
[1737264077991,5.5e-07,104400.0,104390.0,1.04341976]
[1737264078545,0.00089881,104420.0,104410.0,0.55074196]
[1737264078790,0.00089881,104420.0,104410.0,0.65953212]
[1737264078948,0.00089881,104420.0,104410.0,0.69776473]
[1737264079892,0.00089881,104420.0,104410.0,0.86923892]
[1737264080100,0.00089881,104420.0,104410.0,0.89087473]
[1737264080678,8.1e-07,104420.0,104410.0,0.89087473]
[1737264081151,8.1e-07,104420.0,104410.0,0.99484897]
[1737264081582,8.1e-07,104420.0,104410.0,1.00072897]
[1737264081729,8.1e-07,104420.0,104410.0,1.04363158]
[1737264082313,0.00126045,104430.0,104420.0,0.32331208]
[1737264082692,0.00126045,104430.0,104420.0,1.0525459]
[1737264083261,0.00126045,104430.0,104420.0,1.0584259]
[1737264083625,0.00126045,104430.0,104420.0,1.22969222]
[1737264084434,0.00126045,104430.0,104420.0,1.25132803]
[1737264085918,0.00089964,104440.0,104430.0,0.368757]
[1737264086127,0.00104997,104440.0,104430.0,0.67738184]
[1737264086330,0.00104997,104440.0,104430.0,0.71103949]
[1737264086753,0.00104997,104440.0,104430.0,0.62907353]
[1737264086965,0.00104997,104440.0,104430.0,0.71103949]
[1737264087206,0.00104997,104440.0,104430.0,0.7326753]
[1737264087517,1e-08,104440.0,104430.0,1.11802453]
[1737264087713,0.00089943,104450.0,104440.0,0.05813259]
[1737264087931,0.00089943,104450.0,104440.0,0.90100901]
[1737264088134,0.00089943,104450.0,104440.0,0.90311249]
[1737264088329,0.00089943,104450.0,104440.0,1.00311249]
[1737264088561,0.00089943,104450.0,104440.0,1.13447017]
[1737264088741,0.00089943,104450.0,104440.0,1.15610598]
[1737264089324,0.00089943,104450.0,104440.0,1.23330598]
[1737264089528,0.00089943,104450.0,104440.0,1.15610598]
[1737264089708,0.00081157,104450.0,104440.0,1.15610598]
[1737264091818,0.00081157,104450.0,104440.0,1.1247483]
[1737264092310,0.00081157,104450.0,104440.0,1.15320579]
[1737264095673,0.00089943,104460.0,104450.0,0.268739]
[1737264095871,0.00089943,104460.0,104450.0,0.46537512]
[1737264096081,0.00089943,104460.0,104450.0,0.49907495]
[1737264096761,0.00089943,104460.0,104450.0,0.49319495]
[1737264096955,0.00089943,104460.0,104450.0,0.49907495]
[1737264097801,0.00089943,104460.0,104450.0,0.52071076]
[1737264098395,0.00089943,104460.0,104450.0,0.72525584]
[1737264101892,0.14426012,104480.0,104470.0,0.368721]
[1737264102091,0.14426012,104480.0,104470.0,0.59006464]
[1737264102092,0.13093549,104480.0,104470.0,0.59006464]
[1737264102336,0.13093549,104480.0,104470.0,0.48058681]
[1737264102592,0.13093549,104480.0,104470.0,0.56255277]
[1737264103155,0.13093549,104480.0,104470.0,0.58418858]
[1737264103536,0.13093549,104480.0,104470.0,0.59006858]
[1737264103735,4.9e-07,104480.0,104470.0,0.77657962]
[1737264104025,4.9e-07,104480.0,104470.0,0.75492942]
[1737264104634,4.9e-07,104480.0,104470.0,0.83689538]
[1737264104859,4.9e-07,104480.0,104470.0,0.75492942]
[1737264105059,4.9e-07,104480.0,104470.0,0.73329361]
[1737264105464,4.9e-07,104480.0,104470.0,0.75490685]
[1737264105929,4.9e-07,104480.0,104470.0,0.77405491]
[1737264107005,4.9e-07,104480.0,104470.0,0.74346739]
[1737264107414,4.9e-07,104480.0,104470.0,0.71373915]
[1737264107639,4.9e-07,104480.0,104470.0,0.72314784]
[1737264108347,4.9e-07,104480.0,104470.0,0.75373536]
[1737264108792,4.9e-07,104480.0,104470.0,0.83570132]
[1737264109104,4.9e-07,104480.0,104470.0,0.75373536]
[1737264109648,4.9e-07,104480.0,104470.0,0.72314784]
[1737264109847,4.9e-07,104480.0,104470.0,0.71726784]
[1737264110053,4.9e-07,104480.0,104470.0,0.72314784]
[1737264110375,4.9e-07,104480.0,104470.0,0.78344005]
[1737264110585,4.9e-07,104480.0,104470.0,0.92500168]
[1737264110784,5.62519901,104500.0,104480.0,0.12754508]
[1737264111005,5.62519901,104500.0,104490.0,0.45291794]
[1737264112770,5.62519901,104500.0,104490.0,0.47453118]
[1737264114819,5.62519901,104500.0,104490.0,0.48432012]
[1737264115136,5.62519901,104500.0,104490.0,0.49020012]
[1737264118407,5.62519901,104500.0,104490.0,0.49974947]
[1737264118807,5.12519901,104500.0,104490.0,0.49974947]
[1737264119996,5.07889901,104500.0,104490.0,0.51849562]
[1737264120203,5.00089901,104500.0,104490.0,0.61849562]
[1737264120429,5.00089901,104500.0,104490.0,0.75279303]
[1737264120841,4.86156861,104500.0,104490.0,0.75362822]
[1737264121058,4.81386202,104500.0,104490.0,0.86287978]
[1737264121261,4.62942168,104500.0,104490.0,0.86288326]
[1737264121466,4.3382308,104500.0,104490.0,1.41148326]
[1737264121685,4.07936245,104500.0,104490.0,1.49344922]
[1737264121891,3.98881418,104500.0,104490.0,2.01583845]
[1737264122091,3.91855824,104500.0,104490.0,2.01583845]